bitfinex-derivatives/quotes_SOLF0:USTF0_20241215
["timestamp","ask_amount","ask_price","bid_price","bid_amount"]
[1734236857818,7.63904927,221.56,221.49,1.5078]
[1734236858619,2.2577,221.54,221.5,7.63904927]
[1734236859615,2.2575,221.56,221.5,7.63904927]
[1734236859819,2.36,221.58,221.52,7.63904927]
[1734236860021,7.63904927,221.6,221.52,7.63904927]
[1734236860219,9.99904927,221.6,221.52,7.63904927]
[1734236860621,2.2573,221.58,221.52,9.89694927]
[1734236861219,7.63904927,221.6,221.52,9.89694927]
[1734236861420,9.89614927,221.6,221.54,2.2576]
[1734236861621,7.63904927,221.6,221.52,7.63904927]
[1734236862726,9.89614927,221.6,221.53,2.2577]
[1734236864422,2.2569,221.62,221.54,7.63904927]
[1734236864624,9.99904927,221.63,221.56,7.63904927]
[1734236865716,1.4344,221.71,221.58,7.63904927]
[1734236865920,7.63904927,221.65,221.58,7.63904927]
[1734236866120,9.89564927,221.65,221.58,9.89624927]
[1734236866322,2.36,221.7,221.55,2.36]
[1734236866530,7.63904927,221.63,221.56,7.63904927]
[1734236867126,7.63904927,221.63,221.57,2.2573]
[1734236867527,7.63904927,221.63,221.56,7.63904927]
[1734236867728,7.63904927,221.63,221.58,2.2572]
[1734236868025,9.99904927,221.67,221.6,7.63904927]
[1734236868229,2.36,221.68,221.62,7.63904927]
[1734236868428,4.6163,221.68,221.62,7.63904927]
[1734236868625,2.36,221.68,221.62,7.63904927]
[1734236868932,2.2564,221.67,221.62,7.63904927]
[1734236869227,2.36,221.68,221.62,7.63904927]
[1734236869732,4.6162,221.68,221.62,7.63904927]
[1734236869933,7.63904927,221.67,221.61,2.2569]
[1734236870227,4.6162,221.68,221.62,7.63904927]
[1734236870429,2.2561,221.7,221.64,2.2566]
[1734236870629,9.89514927,221.7,221.64,2.2566]
[1734236871227,9.89514927,221.7,221.62,7.63904927]
[1734236871432,7.63904927,221.64,221.51,1.4507]
[1734236871632,7.63904927,221.57,221.48,5.44070677]
[1734236871837,7.63904927,221.57,221.53,2.2577]
[1734236872132,7.63904927,221.57,221.5,7.63904927]
[1734236872725,7.63904927,221.57,221.53,2.2578]
[1734236874034,7.63904927,221.57,221.51,2.2579]
[1734236874331,7.63904927,221.57,221.5,7.63904927]
[1734236874527,9.89644927,221.57,221.5,9.89704927]
[1734236874923,9.89644927,221.57,221.5,7.63904927]
[1734236875126,2.2574,221.57,221.49,1.528]
[1734236875734,2.2575,221.56,221.5,2.2581]
[1734236875935,2.36,221.59,221.5,2.2581]
[1734236876127,2.36,221.59,221.49,1.528]
[1734236876327,2.2574,221.57,221.51,2.2579]
[1734236876527,2.2574,221.57,221.49,1.528]
[1734236877625,2.2574,221.57,221.51,2.258]
[1734236879324,2.2574,221.56,221.51,2.258]
[1734236879732,2.36,221.59,221.51,2.258]
[1734236880227,2.2573,221.58,221.51,2.258]
[1734236880438,2.36,221.59,221.51,2.258]
[1734236880731,2.36,221.59,221.49,3.7861]
[1734236880927,2.2577,221.54,221.49,3.7861]
[1734236881329,14.22208645,221.58,221.51,2.258]
[1734236881540,2.36,221.59,221.51,2.258]
[1734236881735,2.36,221.59,221.49,1.528]
[1734236881929,2.36,221.59,221.49,3.7861]
[1734236881930,2.2574,221.56,221.49,3.7861]
[1734236883136,2.2574,221.56,221.49,1.528]
[1734236883336,2.2574,221.56,221.5,2.2581]
[1734236884131,4.4426,221.63,221.5,2.2581]
[1734236884132,2.28,221.6,221.5,11.96478645]
[1734236884340,2.9343,221.63,221.53,11.96478645]
[1734236884539,2.28,221.62,221.53,11.96478645]
[1734236884839,2.2569,221.61,221.53,11.96478645]
[1734236885638,2.2579,221.52,221.48,5.44070677]
[1734236885943,2.28,221.51,221.48,5.44070677]
[1734236886641,2.28,221.51,221.48,7.69900677]
[1734236886941,2.28,221.51,221.48,5.44070677]
[1734236887840,2.28,221.51,221.26,49.42376966]
[1734236888136,11.96478645,221.49,221.36,11.96478645]
[1734236888443,11.96478645,221.49,221.4,2.2591]
[1734236888444,2.2585,221.46,221.4,2.2591]
[1734236888640,2.28,221.45,221.36,11.96478645]
[1734236888943,2.28,221.45,221.39,2.2591]
[1734236889545,2.28,221.45,221.43,5.43030386]
[1734236892439,2.28,221.45,221.36,11.96478645]
[1734236892944,2.2589,221.42,221.36,2.2595]
[1734236893148,2.28,221.45,221.36,2.2595]
[1734236893643,2.28,221.45,221.33,11.96478645]
[1734236893841,11.96478645,221.47,221.33,11.96478645]
[1734236894040,2.28,221.46,221.36,11.96478645]
[1734236894447,2.28,221.45,221.36,11.96478645]
[1734236894643,11.96478645,221.47,221.36,11.96478645]
[1734236894942,2.28,221.46,221.36,11.96478645]
[1734236895143,7.66621366,221.45,221.39,7.66621366]
[1734236895649,7.66621366,221.45,221.38,5.48128414]
[1734236896643,7.66621366,221.45,221.38,7.74058414]
[1734236897847,7.66621366,221.43,221.38,5.48128414]
[1734236898048,7.66621366,221.41,221.17,13.56]
[1734236898248,2.28,221.4,221.27,2.28]
[1734236898442,2.28,221.4,221.34,7.66621366]
[1734236899043,7.66621366,221.41,221.36,5.33022233]
[1734236899250,2.28,221.4,221.36,12.99643599]
[1734236900144,2.28,221.4,221.36,5.33022233]
[1734236901252,9.94621366,221.4,221.36,5.33022233]
[1734236901454,7.66621366,221.4,221.36,5.33022233]
[1734236901745,2.28,221.39,221.36,5.33022233]
[1734236902947,2.28,221.39,221.29,0.29133]
[1734236903143,7.66621366,221.33,221.29,0.29133]
[1734236903351,2.28,221.32,221.29,0.29133]
[1734236905061,2.28,221.31,221.29,0.29133]
[1734236905250,1.4049,221.38,221.29,0.29133]
[1734236905450,7.66621366,221.35,221.29,7.95754366]
[1734236905854,7.66621366,221.31,221.29,0.29133]
[1734236906156,2.28,221.32,221.29,0.29133]
[1734236908357,1.4049,221.38,221.29,0.29133]
[1734236908660,9.92571366,221.36,221.3,2.2601]
[1734236908860,7.66621366,221.34,221.29,0.29133]
[1734236909549,7.66621366,221.34,221.29,2.55153]
[1734236909754,7.66621366,221.34,221.29,0.29133]
[1734236910249,2.28,221.35,221.29,0.29133]
[1734236910250,7.66621366,221.31,221.29,0.29133]
[1734236910652,2.28,221.3,221.29,0.29133]
[1734236913053,4.5401,221.3,221.29,0.29133]
[1734236918254,12.20631366,221.3,221.29,0.29133]
[1734236922456,2.9577,221.37,221.29,0.29133]
[1734236922665,7.66621366,221.36,221.29,7.95754366]
[1734236922857,1.4049,221.38,221.31,7.66621366]
[1734236923157,2.24,221.37,221.31,7.66621366]
[1734236924567,4.4994,221.37,221.31,9.92621366]
[1734236925071,2.24,221.36,221.31,9.92621366]
[1734236925667,2.2594,221.37,221.31,9.92621366]
[1734236925867,2.24,221.37,221.32,2.2599]
[1734236926472,9.90621366,221.38,221.32,2.2599]
[1734236927869,12.16551366,221.38,221.32,2.2599]
[1734236929274,9.90621366,221.38,221.32,2.2599]
[1734236929566,2.2594,221.37,221.32,2.2599]
[1734236934474,2.24,221.38,221.33,9.92601366]
[1734236935371,2.2592,221.39,221.34,2.2597]
[1734236935576,2.2592,221.39,221.33,7.66621366]
[1734236935577,2.24,221.38,221.33,7.66621366]
[1734236935979,2.24,221.38,221.33,9.92601366]
[1734236936571,4.4993,221.38,221.33,9.92601366]
[1734236937476,2.24,221.38,221.33,9.92601366]
[1734236939178,4.4992,221.39,221.33,9.92601366]
[1734236943284,2.259,221.41,221.35,9.92571366]
[1734236943581,7.66621366,221.45,221.38,7.66621366]
[1734236943777,9.86621366,221.45,221.4,7.66621366]
[1734236944278,9.86621366,221.45,221.38,7.66621366]
[1734236944675,9.86621366,221.45,221.39,2.2591]
[1734236945375,12.12481366,221.45,221.39,2.2591]
[1734236947581,2.2587,221.44,221.38,9.92551366]
[1734236947976,7.66621366,221.39,221.27,5.3078656]
[1734236948177,7.66621366,221.37,221.31,2.26]
[1734236948476,7.66621366,221.37,221.3,7.66621366]
[1734236948684,7.66621366,221.39,221.32,7.66621366]
[1734236949583,9.92551366,221.39,221.32,9.92601366]
[1734236949980,2.2,221.4,221.34,7.66621366]
[1734236950383,12.12511366,221.42,221.36,7.66621366]
[1734236950979,12.12511366,221.42,221.36,9.92571366]
[1734236951884,12.72201366,221.44,221.36,9.92571366]
[1734236953488,9.86621366,221.44,221.38,7.66621366]
[1734236954179,2.2,221.44,221.38,7.66621366]
[1734236954388,2.2,221.44,221.38,9.92551366]
[1734236956280,9.86621366,221.44,221.38,9.92551366]
[1734236956887,9.86621366,221.44,221.39,5.43142693]
[1734236959992,2.2,221.44,221.39,5.43142693]
[1734236960485,2.2,221.44,221.39,2.2591]
[1734236960792,2.2,221.44,221.4,7.66621366]
[1734236961395,2.2,221.44,221.41,5.53745249]
[1734236963489,2.2,221.44,221.34,2.9961]
[1734236963490,2.2588,221.43,221.34,2.9961]
[1734236963696,2.2588,221.43,221.37,7.66621366]
[1734236964194,2.2588,221.43,221.4,5.36572838]
[1734236964585,9.86621366,221.44,221.4,5.36572838]
[1734236965994,9.86621366,221.44,221.37,7.66621366]
[1734236966196,7.66621366,221.42,221.35,2.2595]
[1734236966396,7.66621366,221.42,221.36,7.66621366]
[1734236967389,2.2589,221.43,221.38,7.66621366]
[1734236967789,2.2,221.44,221.38,13.01102449]
[1734236967989,2.2,221.44,221.39,2.2592]
[1734236969299,7.66621366,221.43,221.38,5.34481083]
[1734236969497,2.2,221.44,221.27,2.8643]
[1734236969699,7.66621366,221.4,221.28,2.2]
[1734236969900,7.66621366,221.4,221.34,7.66621366]
[1734236970598,2.2592,221.39,221.34,7.66621366]
[1734236971297,2.2592,221.39,221.35,5.30514054]
[1734236972801,2.259,221.41,221.36,7.66621366]
[1734236974898,2.2,221.45,221.4,7.66621366]
[1734236975100,2.2,221.46,221.4,7.66621366]
[1734236976301,9.86621366,221.47,221.4,7.66621366]
[1734236976704,2.2585,221.46,221.4,9.92531366]
[1734236980804,2.2585,221.46,221.4,2.2591]
[1734236981005,2.2585,221.46,221.4,9.92531366]
[1734236981304,2.2585,221.46,221.42,7.66621366]
[1734236982406,2.2,221.47,221.42,7.66621366]
[1734236983007,4.4584,221.47,221.42,7.66621366]
[1734236984200,2.9425,221.51,221.46,7.66621366]
[1734236984412,5.1425,221.51,221.46,7.66621366]
[1734236984704,2.9425,221.51,221.46,7.66621366]
[1734236984909,5.1425,221.51,221.46,7.66621366]
[1734236985106,2.2581,221.5,221.46,7.66621366]
[1734236986908,2.2582,221.49,221.46,7.66621366]
[1734236987212,12.80871366,221.51,221.44,7.66621366]
[1734236987410,7.66621366,221.49,221.44,7.66621366]
[1734236988011,7.66621366,221.49,221.42,7.66621366]
[1734236988215,7.66621366,221.47,221.4,9.92521366]
[1734236989111,2.2585,221.46,221.4,9.92521366]
[1734236989909,2.2585,221.46,221.36,6.5708]
[1734236989910,7.66621366,221.47,221.36,5.1082]
[1734236990109,7.66621366,221.45,221.4,7.66621366]
[1734236990313,2.2,221.44,221.38,7.66621366]
[1734236991214,2.2588,221.43,221.38,7.66621366]
[1734236991615,2.2,221.44,221.4,7.66621366]
[1734236995818,7.66621366,221.43,221.36,7.66621366]
[1734236996618,2.2589,221.42,221.36,9.92571366]
[1734236998517,2.2589,221.42,221.38,7.66621366]
[1734236998816,2.2589,221.42,221.38,13.22613164]
[1734237001419,2.2589,221.42,221.38,5.55991798]
[1734237002015,7.66621366,221.41,221.34,7.66621366]
[1734237002611,2.259,221.41,221.37,7.66621366]
[1734237003316,2.2,221.4,221.37,7.66621366]
[1734237003518,4.4592,221.4,221.35,7.66621366]
[1734237005123,4.4592,221.4,221.34,5.43265443]
[1734237005318,2.2592,221.39,221.34,5.43265443]
[1734237006222,2.2,221.4,221.35,7.66621366]
[1734237006520,2.2,221.4,221.37,7.66621366]
[1734237007115,7.66621366,221.45,221.39,7.66621366]
[1734237007312,2.2,221.44,221.39,7.66621366]
[1734237007517,2.2,221.43,221.39,7.66621366]
[1734237008627,2.2585,221.46,221.39,9.92541366]
[1734237008823,2.2,221.45,221.39,9.92541366]
[1734237011222,2.2583,221.48,221.41,9.92511366]
[1734237011424,2.2,221.46,221.41,9.92511366]
[1734237012924,1.5203,221.51,221.34,5.43265443]
[1734237012925,249.2523651,221.61,221.45,7.66621366]
[1734237013122,7.66621366,221.52,221.45,7.66621366]
[1734237013525,26.14216547,221.52,221.45,7.66621366]
[1734237013822,7.66621366,221.52,221.45,7.66621366]
[1734237014125,7.66621366,221.46,221.4,9.13841366]
[1734237014517,2.2586,221.45,221.38,2.2592]
[1734237014724,2.2586,221.45,221.4,7.66621366]
[1734237015427,2.2587,221.44,221.39,7.66621366]
[1734237016724,7.66621366,221.44,221.35,1.4806]
[1734237016921,2.259,221.41,221.35,9.14681366]
[1734237017125,2.259,221.41,221.35,7.66621366]
[1734237017522,9.86621366,221.42,221.35,7.66621366]
[1734237017739,1.5196,221.46,221.39,7.66621366]
[1734237017922,2.2,221.45,221.41,7.66621366]
[1734237018131,2.2,221.44,221.41,7.66621366]
[1734237018425,9.86621366,221.46,221.39,7.66621366]
[1734237018729,2.2589,221.42,221.37,7.66621366]
[1734237021429,2.2,221.43,221.37,7.66621366]
[1734237022627,4.4588,221.43,221.37,7.66621366]
[1734237025235,4.4588,221.43,221.36,2.2594]
[1734237025236,2.2591,221.4,221.34,5.43265443]
[1734237025422,2.2591,221.4,221.35,7.66621366]
[1734237027533,2.2,221.43,221.34,5.43265443]
[1734237027534,2.2,221.43,221.37,7.66621366]
[1734237027927,2.2,221.42,221.37,7.66621366]
[1734237029229,4.4589,221.42,221.37,7.66621366]
[1734237033231,2.2,221.42,221.37,7.66621366]
[1734237033430,1.4679,221.52,221.41,7.66621366]
[1734237033628,7.66621366,221.47,221.41,7.66621366]
[1734237033838,2.18,221.46,221.41,7.66621366]
[1734237034139,2.2584,221.47,221.43,7.66621366]
[1734237034334,2.18,221.45,221.43,7.66621366]
[1734237034529,2.2584,221.47,221.43,7.66621366]
[1734237034734,2.18,221.46,221.43,7.66621366]
[1734237035736,2.18,221.47,221.43,7.66621366]
[1734237035941,2.2583,221.48,221.45,7.66621366]
[1734237036244,2.18,221.48,221.47,7.66621366]
[1734237036433,2.18,221.5,221.47,7.66621366]
[1734237036737,2.18,221.5,221.42,1.438]
[1734237036738,2.18,221.51,221.49,7.66621366]
[1734237037438,4.4378,221.52,221.44,2.2585]
[1734237037634,4.4378,221.52,221.46,7.66621366]
[1734237038836,2.18,221.52,221.48,7.66621366]
[1734237040537,2.18,221.52,221.46,7.66621366]
[1734237041730,2.258,221.51,221.46,7.66621366]
[1734237042836,2.18,221.52,221.46,7.66621366]
[1734237043039,7.66621366,221.51,221.46,7.66621366]
[1734237044039,7.66621366,221.49,221.42,1.438]
[1734237044240,7.66621366,221.49,221.42,7.66621366]
[1734237045644,2.2584,221.47,221.42,7.66621366]
[1734237045944,2.18,221.46,221.42,7.66621366]
[1734237046242,2.18,221.46,221.4,3.7637]
[1734237046444,2.18,221.46,221.42,7.66621366]
[1734237047638,2.2584,221.47,221.42,7.66621366]
[1734237047838,4.4384,221.47,221.42,7.66621366]
[1734237048443,2.18,221.47,221.44,7.66621366]
[1734237049643,2.258,221.51,221.46,7.66621366]
[1734237049844,2.18,221.5,221.48,7.66621366]
[1734237050039,2.18,221.51,221.48,7.66621366]
[1734237052236,7.66621366,221.54,221.48,7.66621366]
[1734237052237,2.18,221.52,221.48,7.66621366]
[1734237053043,2.18,221.52,221.48,9.92441366]
[1734237053947,2.18,221.53,221.48,9.92441366]
[1734237056339,2.18,221.53,221.5,7.66621366]
[1734237057950,186.9392738,221.7,221.52,7.66621366]
[1734237058145,9.17301366,221.61,221.54,7.66621366]
[1734237058450,2.18,221.6,221.54,7.66621366]
[1734237059744,2.2571,221.59,221.54,7.66621366]
[1734237060144,2.18,221.6,221.54,7.66621366]
[1734237060352,2.18,221.6,221.56,7.66621366]
[1734237062046,2.2569,221.61,221.56,7.66621366]
[1734237062246,4.4369,221.61,221.56,7.66621366]
[1734237064655,2.2569,221.61,221.56,7.66621366]
[1734237065446,2.18,221.62,221.56,7.66621366]
[1734237065647,2.18,221.62,221.58,7.66621366]
[1734237066651,4.4368,221.62,221.58,7.66621366]
[1734237067760,4.4368,221.62,221.55,2.2575]
[1734237067948,4.4368,221.62,221.56,7.66621366]
[1734237068857,2.2568,221.62,221.56,7.66621366]
[1734237069157,4.4368,221.62,221.56,7.66621366]
[1734237069859,4.4368,221.62,221.58,7.66621366]
[1734237071059,4.4368,221.62,221.55,2.2575]
[1734237071360,4.4368,221.62,221.58,7.66621366]
[1734237072757,4.4368,221.62,221.55,2.2575]
[1734237072758,2.2573,221.58,221.51,7.54327301]
[1734237072959,7.66621366,221.59,221.53,7.66621366]
[1734237073363,2.2572,221.59,221.53,7.66621366]
[1734237073962,2.2573,221.57,221.53,7.66621366]
[1734237074262,2.2573,221.57,221.51,7.54327301]
[1734237074263,2.18,221.57,221.51,12.95168667]
[1734237074659,2.18,221.57,221.51,7.66621366]
[1734237074861,7.66621366,221.56,221.49,7.66621366]
[1734237075060,2.258,221.51,221.48,5.40896603]
[1734237075362,2.18,221.52,221.47,7.66621366]
[1734237076167,9.84621366,221.52,221.45,7.66621366]
[1734237076361,2.2581,221.5,221.45,7.66621366]
[1734237077365,2.2581,221.5,221.42,2.2588]
[1734237077568,2.2581,221.5,221.46,7.66621366]
[1734237079661,2.2582,221.49,221.46,7.66621366]
[1734237079862,9.84621366,221.52,221.4,2.259]
[1734237080160,9.84621366,221.52,221.44,7.66621366]
[1734237081165,2.2581,221.5,221.44,7.66621366]
[1734237081366,9.84621366,221.52,221.44,7.66621366]
[1734237081966,2.2583,221.48,221.44,7.66621366]
[1734237082560,2.2583,221.47,221.44,7.66621366]
[1734237083064,2.2583,221.47,221.43,5.49144202]
[1734237083268,4.4383,221.47,221.4,2.259]
[1734237083468,2.2586,221.45,221.38,1.4984]
[1734237083667,2.18,221.47,221.4,7.66621366]
[1734237083861,2.2588,221.43,221.4,7.66621366]
[1734237084169,2.18,221.42,221.38,7.66621366]
[1734237084470,4.4388,221.42,221.38,7.66621366]
[1734237084768,2.18,221.42,221.36,13.17304743]
[1734237085570,2.259,221.41,221.36,13.17304743]
[1734237086579,3.0163,221.55,221.4,7.66621366]
[1734237086775,3.0163,221.55,221.36,5.50683377]
[1734237086776,7.66621366,221.48,221.42,7.66621366]
[1734237087276,2.18,221.47,221.42,7.66621366]
[1734237088074,2.2584,221.46,221.4,7.66621366]
[1734237089479,2.18,221.48,221.36,7.68683377]
[1734237089674,9.84621366,221.48,221.41,7.66621366]
[1734237090081,2.2584,221.46,221.41,7.66621366]
[1734237090976,2.2586,221.44,221.41,7.66621366]
[1734237091174,2.2586,221.44,221.39,7.66621366]
[1734237091977,7.66621366,221.46,221.39,7.66621366]
[1734237092179,9.92471366,221.46,221.39,7.66621366]
[1734237092477,7.66621366,221.46,221.39,7.66621366]
[1734237092680,2.2587,221.44,221.39,7.66621366]
[1734237092873,2.18,221.43,221.39,7.66621366]
[1734237093178,2.18,221.43,221.37,3.7114]
[1734237093574,2.18,221.43,221.39,7.66621366]
[1734237095482,2.18,221.43,221.39,9.92531366]
[1734237096375,2.18,221.43,221.41,7.66621366]
[1734237096578,2.2583,221.48,221.41,7.66621366]
[1734237096778,2.2583,221.48,221.43,7.66621366]
[1734237096978,2.18,221.47,221.43,7.66621366]
[1734237097679,7.66621366,221.46,221.39,7.66621366]
[1734237098481,2.2587,221.44,221.39,7.66621366]
[1734237100273,2.2587,221.44,221.38,2.2592]
[1734237100582,2.2587,221.44,221.39,7.66621366]
[1734237103582,2.2587,221.44,221.38,2.2592]
[1734237103780,2.2587,221.44,221.39,7.66621366]
[1734237105086,7.66621366,221.44,221.39,7.66621366]
[1734237105384,2.2588,221.43,221.39,7.66621366]
[1734237107083,7.66621366,221.44,221.39,7.66621366]
[1734237107084,2.2586,221.44,221.39,7.66621366]
[1734237111888,2.2586,221.44,221.39,13.18872677]
[1734237112581,7.66621366,221.44,221.36,2.2593]
[1734237112783,7.66621366,221.42,221.35,7.66621366]
[1734237113089,2.18,221.43,221.37,7.66621366]
[1734237113796,2.2588,221.42,221.36,5.3019607]
[1734237114085,9.84621366,221.43,221.36,12.96817436]
[1734237114483,2.259,221.41,221.36,12.96817436]
[1734237115189,2.259,221.41,221.36,5.3019607]
[1734237117991,2.259,221.4,221.36,5.3019607]
[1734237118193,7.66621366,221.38,221.32,0.25162]
[1734237118396,2.18,221.37,221.32,0.25162]
[1734237119492,4.4392,221.37,221.32,0.25162]
[1734237119692,2.8529,221.45,221.35,7.66621366]
[1734237119892,7.66621366,221.42,221.35,7.66621366]
[1734237120690,9.92491366,221.42,221.36,2.2593]
[1734237120894,9.92491366,221.42,221.37,7.66621366]
[1734237121902,9.92491366,221.42,221.35,2.2594]
[1734237122097,2.18,221.41,221.36,7.66621366]
[1734237122993,436.1916389,221.53,221.38,7.66621366]
[1734237123196,7.66621366,221.46,221.4,7.66621366]
[1734237123590,2.18,221.45,221.4,7.66621366]
[1734237123992,4.4385,221.45,221.4,7.66621366]
[1734237124601,2.18,221.45,221.4,7.66621366]
[1734237125297,4.4385,221.45,221.38,9.92531366]
[1734237126298,7.66621366,221.44,221.38,9.92531366]
[1734237126498,7.66621366,221.44,221.39,5.24070349]
[1734237126697,7.66621366,221.44,221.38,9.92531366]
[1734237126894,9.92471366,221.44,221.39,5.24063573]
[1734237127197,9.92471366,221.44,221.38,9.92531366]
[1734237127498,9.92471366,221.44,221.39,5.24231258]
[1734237127700,9.92471366,221.44,221.38,9.92531366]
[1734237127996,7.66621366,221.42,221.35,7.66621366]
[1734237128396,7.66621366,221.42,221.36,5.2448219]
[1734237128591,7.66621366,221.42,221.37,5.2448219]
[1734237128897,7.66621366,221.42,221.35,9.92561366]
[1734237129094,7.66621366,221.42,221.36,5.24526521]
[1734237129399,7.66621366,221.42,221.37,5.24526521]
[1734237129695,7.66621366,221.42,221.35,9.92561366]
[1734237130002,2.18,221.45,221.37,7.66621366]
[1734237130297,2.18,221.45,221.39,7.66621366]
[1734237130498,2.18,221.45,221.4,5.24541671]
[1734237130698,2.18,221.45,221.39,7.66621366]
[1734237131693,2.18,221.45,221.39,9.92521366]
[1734237132400,2.18,221.45,221.41,7.66621366]
[1734237140207,2.18,221.45,221.4,2.2589]
[1734237140401,2.18,221.45,221.41,5.24299146]
[1734237140601,2.18,221.45,221.4,7.66621366]
[1734237140807,2.18,221.45,221.41,5.24303634]
[1734237141005,2.18,221.45,221.4,7.66621366]
[1734237141302,2.18,221.45,221.41,5.24332922]
[1734237141503,2.18,221.45,221.4,7.66621366]
[1734237141705,2.18,221.45,221.41,5.24323097]
[1734237141912,2.18,221.45,221.4,7.66621366]
[1734237142114,2.18,221.45,221.41,5.24323299]
[1734237142312,2.18,221.45,221.38,2.2591]
[1734237142512,4.4385,221.45,221.39,21.29992591]
[1734237142705,4.4385,221.45,221.4,5.24373548]
[1734237142912,4.4385,221.45,221.41,5.24373548]
[1734237143218,4.4385,221.45,221.39,7.66621366]
[1734237143520,4.4385,221.45,221.4,5.24379471]
[1734237143818,4.4385,221.45,221.39,7.66621366]
[1734237144020,4.4385,221.45,221.4,5.24377033]
[1734237144213,9.92501366,221.42,221.41,5.24377033]
[1734237144419,9.92501366,221.42,221.36,7.66621366]
[1734237144618,9.92501366,221.42,221.37,13.63716352]
[1734237144814,9.92501366,221.42,221.38,5.24506289]
[1734237145017,9.92501366,221.42,221.39,5.24506289]
[1734237145215,9.92501366,221.42,221.36,7.66621366]
[1734237145417,9.92501366,221.42,221.37,5.24543254]
[1734237145721,2.2589,221.41,221.36,7.66621366]
[1734237145922,2.2589,221.41,221.37,5.24610008]
[1734237146123,2.259,221.4,221.36,7.66621366]
[1734237146317,2.259,221.4,221.37,5.24593835]
[1734237146614,2.259,221.4,221.36,7.66621366]
[1734237146816,2.259,221.4,221.37,5.24600251]
[1734237147016,2.259,221.4,221.36,7.66621366]
[1734237147212,2.259,221.4,221.37,5.24608815]
[1734237147412,2.259,221.4,221.36,7.66621366]
[1734237147622,2.259,221.4,221.37,5.24607884]
[1734237147822,2.259,221.4,221.36,7.66621366]
[1734237148023,2.259,221.4,221.37,5.24609341]
[1734237148315,2.259,221.4,221.36,7.66621366]
[1734237148516,2.259,221.4,221.37,5.24594914]
[1734237148721,2.259,221.4,221.36,7.66621366]
[1734237148924,2.259,221.4,221.37,5.24575052]
[1734237149114,2.259,221.4,221.36,7.66621366]
[1734237149319,2.2591,221.39,221.37,5.24585481]
[1734237149520,2.2591,221.39,221.33,7.66621366]
[1734237149521,2.18,221.39,221.33,7.66621366]
[1734237149717,2.18,221.39,221.34,5.24608264]
[1734237149915,7.66621366,221.35,221.2,1.4577]
[1734237150125,7.66621366,221.31,221.28,13.64894627]
[1734237150317,7.66621366,221.31,221.2,1.4577]
[1734237150318,2.18,221.3,221.25,7.66621366]
[1734237150519,2.18,221.3,221.29,5.25043259]
[1734237150825,2.18,221.3,221.24,7.66621366]
[1734237151023,2.18,221.3,221.28,5.24893274]
[1734237151221,2.18,221.3,221.24,7.66621366]
[1734237151525,7.66621366,221.29,221.2,1.4577]
[1734237151726,9.92631366,221.29,221.21,7.66621366]
[1734237152117,9.92631366,221.29,221.23,5.38162148]
[1734237152424,2.2601,221.29,221.23,5.38162148]
[1734237152623,7.66621366,221.28,221.18,1.5007]
[1734237152821,7.66621366,221.28,221.19,7.66621366]
[1734237153320,2.2605,221.25,221.15,1.4741]
[1734237153623,7.66621366,221.23,221.18,5.43209962]
[1734237153829,2.18,221.22,221.18,5.43209962]
[1734237154827,2.18,221.22,221.16,7.66621366]
[1734237155923,7.66621366,221.21,221.14,1.4898]
[1734237156426,2.261,221.2,221.13,7.66621366]
[1734237156732,7.66621366,221.19,221.13,7.66621366]
[1734237157022,7.66621366,221.19,221.13,13.18527617]
[1734237157227,9.92741366,221.19,221.12,7.66621366]
[1734237157427,7.66621366,221.19,221.07,2.9221]
[1734237157727,7.66621366,221.17,221.1,7.66621366]
[1734237158027,2.18,221.16,221.09,2.2621]
[1734237158320,2.18,221.16,221.11,7.66621366]
[1734237159329,2.18,221.16,221.09,5.40107999]
[1734237159330,7.66621366,221.14,221.09,5.40107999]
[1734237160522,2.2617,221.13,221.07,7.66621366]
[1734237160927,2.2617,221.13,221.06,7.66621366]
[1734237161123,7.66621366,221.14,221.05,5.43692426]
[1734237161327,7.66621366,221.1,220.98,8.3442448]
[1734237161528,2.18,221.09,221.03,7.66621366]
[1734237161727,7.66621366,221.1,221.05,7.66621366]
[1734237162032,2.18,221.09,221.04,7.66621366]